bitfinex/quotes_SOLUSD_20250811
["timestamp","ask_amount","ask_price","bid_price","bid_amount"]
[1754917688300,81.58616049,178.18,178.17,0.2]
[1754917688667,71.97230216,178.18,178.17,0.2]
[1754917688882,75.97385833,178.18,178.17,0.2]
[1754917689271,82.26616049,178.18,178.17,0.2]
[1754917690203,160.80621557,178.17,178.13,0.06]
[1754917690369,50.7200739,178.14,178.13,0.06]
[1754917690570,75.97385833,178.14,178.13,0.06]
[1754917690802,31.61356236,178.14,178.13,0.06]
[1754917691091,66.42,178.14,178.13,0.06]
[1754917691795,7.86100301,178.18,178.13,9.85385833]
[1754917691796,11.86250233,178.18,178.13,9.85385833]
[1754917691978,26.0,178.16,178.14,9.79385833]
[1754917692164,40.44,178.15,178.14,9.61385833]
[1754917692373,66.44,178.16,178.14,9.61385833]
[1754917692679,9.61385833,178.15,178.13,0.06]
[1754917692990,50.07385833,178.14,178.13,0.06]
[1754917693184,41.14,178.14,178.13,0.06]
[1754917693379,50.75385833,178.14,178.13,0.06]
[1754917693896,53.00300833,178.14,178.13,0.06]
[1754917694398,9.61385833,178.14,178.13,0.06]
[1754917694594,50.07385833,178.14,178.13,0.06]
[1754917694796,50.75385833,178.14,178.13,0.06]
[1754917695095,50.07385833,178.14,178.13,0.06]
[1754917695295,81.68742069,178.14,178.13,0.06]
[1754917695479,82.36742069,178.14,178.13,0.06]
[1754917695987,35.61385833,178.14,178.13,0.06]
[1754917696189,76.09385833,178.14,178.13,0.06]
[1754917697199,82.38742069,178.14,178.13,0.06]
[1754917697809,56.38742069,178.14,178.13,0.06]
[1754917698178,71.49363626,178.14,178.13,0.06]
[1754917698690,145.7,178.13,178.11,0.06]
[1754917698879,76.05385833,178.12,178.11,0.06]
[1754917699081,81.668051,178.12,178.11,0.06]
[1754917699288,82.388051,178.12,178.11,0.06]
[1754917699887,41.948051,178.12,178.11,0.06]
[1754917700095,82.368051,178.12,178.11,0.06]
[1754917701273,85.28336185,178.12,178.11,0.06]
[1754917701791,100.38957742,178.12,178.1,0.2]
[1754917701987,41.10621557,178.08,178.07,14.24027802]
[1754917702299,60.36771666,178.08,178.0,1.73207865]
[1754917702476,9.61385833,178.01,178.0,1.73207865]
[1754917702677,50.05385833,178.01,178.0,1.73207865]
[1754917703221,50.05385833,178.01,178.0,2.43207865]
[1754917704626,0.72,178.1,178.0,17.6639145]
[1754917704829,46.05513841,178.09,178.01,0.7]
[1754917705124,50.05385833,178.08,178.03,9.61385833]
[1754917705313,9.61385833,178.05,178.0,1.73207865]
[1754917705516,50.05385833,178.04,178.01,0.7]
[1754917705718,40.44,178.03,178.01,10.31385833]
[1754917705926,40.44,178.03,178.0,1.73207865]
[1754917706107,9.61385833,178.01,178.0,1.73207865]
[1754917706310,40.46,178.01,178.0,2.43207865]
[1754917707298,40.46,178.01,178.0,1.73207865]
[1754917707729,40.46,178.01,178.0,2.43207865]
[1754917708024,26.0,178.02,178.0,17.6639145]
[1754917708224,26.0,178.02,178.01,0.7]
[1754917709106,40.46,178.02,178.01,10.31385833]
[1754917709306,19.22771633,178.09,178.02,5.61734636]
[1754917709527,40.44,178.08,178.04,9.61385833]
[1754917709725,19.22771633,178.09,178.04,9.61385833]
[1754917709726,9.61385833,178.09,178.05,0.7]
[1754917709946,2.91531085,178.12,178.08,9.61385833]
[1754917710107,76.07385833,178.11,178.06,0.7]
[1754917710308,0.72,178.1,178.03,0.7]
[1754917710513,40.46,178.09,178.04,9.61385833]
[1754917710723,50.07385833,178.09,178.04,10.31385833]
[1754917711033,9.61385833,178.08,178.04,0.7]
[1754917711228,40.46,178.07,178.05,10.31385833]
[1754917711415,145.7,178.11,178.06,10.31385833]
[1754917711621,40.46,178.1,178.08,9.61385833]
[1754917711817,40.46,178.1,178.09,0.7]
[1754917712236,26.0,178.12,178.09,10.31385833]
[1754917712441,14.762323,178.16,178.1,10.31385833]
[1754917712442,9.61385833,178.15,178.1,10.31385833]
[1754917712612,2.91611691,178.18,178.13,9.61385833]
[1754917712944,40.48,178.18,178.14,10.31385833]
[1754917713127,92.95963433,178.18,178.13,9.61385833]
[1754917713316,9.61385833,178.15,178.1,9.61385833]
[1754917713518,40.48,178.14,178.11,5.61446157]
[1754917713715,40.48,178.14,178.11,6.31446157]
[1754917713940,40.48,178.14,178.11,15.9283199]
[1754917714523,9.61385833,178.13,178.08,6.31545372]
[1754917714714,9.61385833,178.13,178.08,15.92931205]
[1754917714914,9.61385833,178.11,178.07,5.61570447]
[1754917715141,50.09385833,178.11,178.07,5.61570447]
[1754917715336,50.09385833,178.11,178.06,5.61608446]
[1754917715542,50.09385833,178.11,178.07,0.7]
[1754917715757,40.48,178.11,178.07,10.31385833]
[1754917715913,40.48,178.11,178.08,0.7]
[1754917716567,26.0,178.14,178.1,9.61385833]
[1754917716717,9.61385833,178.2,178.13,9.61385833]
[1754917716912,26.0,178.16,178.15,9.61385833]
[1754917717118,40.46,178.18,178.15,9.61385833]
[1754917717443,40.46,178.18,178.15,10.31385833]
[1754917717744,140.0,178.15,178.14,9.61385833]
[1754917718253,40.46,178.18,178.14,15.22742069]
[1754917718435,40.46,178.18,178.15,9.61385833]
[1754917719120,40.46,178.18,178.16,9.61385833]
[1754917719320,40.46,178.18,178.15,9.61385833]
[1754917719520,0.72,178.17,178.11,5.61450788]
[1754917719722,0.72,178.17,178.14,9.61385833]
[1754917720150,46.07236304,178.18,178.14,9.61385833]
[1754917720452,9.61385833,178.15,178.11,9.61385833]
[1754917720752,41.14,178.14,178.09,9.61385833]
[1754917721448,9.61385833,178.12,178.07,5.61571369]
[1754917721627,40.44,178.11,178.06,15.22985589]
[1754917721823,50.77385833,178.11,178.05,15.93017192]
[1754917722023,9.61385833,178.1,178.05,15.93017192]
[1754917722337,50.77385833,178.11,178.06,9.61385833]
[1754917722519,9.61385833,178.09,178.04,5.61662578]
[1754917722719,9.61385833,178.08,178.03,15.93085553]
[1754917722951,50.03385833,178.08,178.03,15.93085553]
[1754917723158,0.72,178.07,178.01,5.61766192]
[1754917723343,50.03385833,178.08,178.03,9.61385833]
[1754917723642,40.42,178.08,178.05,15.23025821]
[1754917723959,26.0,178.09,178.07,9.61385833]
[1754917724559,40.44,178.1,178.08,9.61385833]
[1754917724856,26.0,178.11,178.09,9.61385833]
[1754917725072,66.44,178.13,178.1,10.31385833]
[1754917725241,40.44,178.13,178.1,10.31385833]
[1754917725545,40.44,178.13,178.1,15.92839229]
[1754917725741,40.44,178.13,178.1,15.22839229]
[1754917726252,40.44,178.13,178.11,9.61385833]
[1754917726555,41.16,178.13,178.09,5.615111]
[1754917726760,41.16,178.13,178.09,15.22896933]
[1754917726930,40.44,178.13,178.11,9.61385833]
[1754917727132,40.44,178.13,178.1,0.7]
[1754917727328,40.44,178.13,178.11,9.61385833]
[1754917727525,0.5,178.12,178.11,5.61450788]
[1754917727726,0.5,178.12,178.11,9.61385833]
[1754917728030,0.5,178.12,178.09,9.61385833]
[1754917728662,1.16,178.12,178.09,9.61385833]
[1754917729232,0.5,178.12,178.1,9.61385833]
[1754917729652,0.5,178.12,178.09,15.22895073]
[1754917729870,1.16,178.12,178.09,15.22895073]
[1754917730052,0.66,178.12,178.09,15.22895073]
[1754917730252,50.01385833,178.14,178.09,15.22895073]
[1754917730565,35.61385833,178.11,178.06,9.61385833]
[1754917730771,9.61385833,178.09,178.04,9.61385833]
[1754917730940,66.4,178.11,178.02,15.23120469]
[1754917730941,9.61385833,178.07,178.02,15.23120469]
[1754917731255,0.66,178.06,178.02,15.23120469]
[1754917731443,10.27385833,178.06,178.02,5.61734636]
[1754917732162,10.27385833,178.05,178.01,5.61760914]
[1754917732346,9.61385833,178.06,178.01,6.33760914]
[1754917732546,9.61385833,178.06,178.02,9.61385833]
[1754917732753,0.66,178.06,178.02,9.61385833]
[1754917732961,10.27385833,178.06,178.01,6.33760914]
[1754917733383,10.27385833,178.06,178.01,15.23146747]
[1754917733534,50.01385833,178.05,178.0,17.02388943]
[1754917733866,41.06,178.05,178.01,9.61385833]
[1754917734173,41.06,178.05,178.0,7.4100311]
[1754917734365,0.66,178.04,178.0,17.02388943]
[1754917734664,0.66,178.03,178.0,1.79207865]
[1754917734843,9.61385833,178.04,178.0,1.79207865]
[1754917734844,9.61385833,178.04,178.0,7.40998738]
[1754917735054,50.01385833,178.05,178.0,17.74384571]
[1754917735358,0.5,178.03,178.0,17.02384571]
[1754917735539,0.5,178.03,178.0,7.40998738]
[1754917735936,0.5,178.03,178.0,17.02384571]
[1754917736444,41.02,178.02,178.0,1.79207865]
[1754917736642,15.10621557,178.0,177.98,170.77307282]
[1754917736964,95.2600739,177.99,177.98,82.06177315]
[1754917737165,65.2600739,177.99,177.98,82.06177315]
[1754917737535,50.21385833,177.99,177.98,82.06177315]
[1754917737736,9.61385833,177.99,177.98,82.06177315]
[1754917738168,70.95836706,177.99,177.98,82.06177315]
[1754917738464,41.10621557,177.95,177.86,0.72]
[1754917738640,9.61385833,177.89,177.86,0.72]
[1754917738839,50.29385833,177.89,177.86,0.72]
[1754917739042,9.61385833,177.88,177.86,0.72]
[1754917739248,9.61385833,177.88,177.83,15.62325404]
[1754917739249,140.0,177.86,177.83,10.0]
[1754917739444,60.33393223,177.84,177.83,10.0]
[1754917739641,35.61385833,177.84,177.83,10.0]
[1754917739934,74.47385833,177.84,177.83,10.0]
[1754917740135,5.62145145,177.89,177.83,10.0]
[1754917740477,28.09955002,177.94,177.83,10.0]
[1754917740478,9.61385833,177.85,177.83,10.72]
[1754917740886,9.61385833,177.84,177.83,10.0]
[1754917741458,15.10621557,177.88,177.83,10.0]
[1754917741459,19.66844618,177.95,177.83,10.72]
[1754917741787,26.0,177.88,177.86,9.61385833]
[1754917741955,40.92,177.9,177.87,0.72]
[1754917742254,40.94,177.9,177.87,0.72]
[1754917742453,40.94,177.9,177.88,0.72]
[1754917742675,40.94,177.9,177.86,9.61385833]
[1754917742882,140.0,177.88,177.87,9.61385833]
[1754917743378,40.94,177.9,177.87,0.72]
[1754917743586,40.94,177.9,177.88,0.72]
[1754917743788,40.94,177.9,177.87,10.33385833]
[1754917743994,40.94,177.9,177.88,10.33385833]
[1754917744293,40.94,177.9,177.89,0.72]
[1754917744489,40.94,177.9,177.89,10.33385833]
[1754917744793,40.94,177.97,177.89,10.33385833]
[1754917745096,40.94,177.97,177.9,0.72]
[1754917745307,50.55385833,177.97,177.9,0.72]
[1754917745457,0.5,177.96,177.9,0.72]
[1754917745651,9.61385833,177.95,177.9,0.72]
[1754917745855,9.61385833,177.95,177.91,0.72]
[1754917746290,9.61385833,177.94,177.91,0.72]
[1754917746471,9.61385833,177.93,177.88,0.72]
[1754917746661,9.61385833,177.93,177.89,0.72]
[1754917746870,9.61385833,177.91,177.86,6.34235332]
[1754917747063,26.0,177.9,177.85,0.06]
[1754917747266,9.61385833,177.91,177.87,0.72]
[1754917747561,26.0,177.92,177.88,10.33385833]
[1754917747889,40.96,177.93,177.91,9.61385833]
[1754917748106,40.96,177.93,177.92,0.72]
[1754917748466,40.96,177.93,177.89,9.61385833]
[1754917748668,29.14971569,178.02,177.92,9.61385833]
[1754917748884,9.61385833,178.0,177.96,9.61385833]
[1754917749194,41.0,178.0,177.98,9.61385833]
[1754917749407,10.32607758,178.07,177.99,10.33385833]
[1754917749704,10.32607758,178.07,178.06,9.61385833]
[1754917749865,41.02,178.09,178.06,6.33608446]
[1754917750062,41.04,178.1,178.06,5.61608446]
[1754917750260,14.54454651,178.13,178.09,14.54454651]
[1754917750468,41.04,178.12,178.07,0.72]
[1754917750690,41.04,178.12,178.09,14.54454651]
[1754917750871,41.04,178.12,178.1,0.72]
[1754917751079,41.04,178.12,178.1,15.26454651]
[1754917751265,41.04,178.12,178.06,19.65629562]
[1754917751266,0.03,178.15,178.11,15.26454651]
[1754917751471,0.03,178.15,178.14,14.54454651]
[1754917751778,0.03,178.15,178.14,5.61356236]
[1754917752086,0.03,178.15,178.14,6.33356236]
[1754917752294,140.0,178.14,178.11,20.87900362]
[1754917752488,14.54454651,178.13,178.08,20.16000023]
[1754917752701,140.0,178.14,178.12,14.54454651]
[1754917752870,0.03,178.15,178.12,0.72]
[1754917753181,14.54454651,178.14,178.09,15.26454651]
[1754917753401,14.54454651,178.14,178.08,5.61545372]
[1754917753402,14.57454651,178.15,178.1,0.72]
[1754917753562,14.54454651,178.12,178.06,0.72]
[1754917753762,14.54454651,178.12,178.07,14.54454651]
[1754917754065,14.54454651,178.12,178.08,0.72]
[1754917754282,20.15884804,178.12,178.08,0.72]
[1754917754966,14.54454651,178.1,178.05,14.54454651]
[1754917755199,14.54454651,178.1,178.05,15.26454651]
[1754917755365,14.54454651,178.09,178.05,0.72]
[1754917755566,14.54454651,178.1,178.05,15.26454651]
[1754917755772,20.1595301,178.1,178.06,0.72]
[1754917756283,46.65498359,178.1,178.03,0.72]
[1754917756472,46.65498359,178.1,178.05,0.72]
[1754917756675,55.58454651,178.1,178.05,15.26454651]
[1754917756975,41.04,178.1,178.08,14.54454651]
[1754917757172,41.04,178.1,178.08,0.72]
[1754917757490,40.54454651,178.14,178.09,0.72]
[1754917757690,41.0,178.13,178.08,14.54454651]
[1754917757880,55.54454651,178.13,178.09,0.72]
[1754917758079,14.54454651,178.11,178.06,0.72]
[1754917758397,14.54454651,178.12,178.07,14.54454651]
[1754917758601,61.15855172,178.13,178.08,15.23454651]
[1754917758801,61.15855172,178.13,178.09,0.69]
[1754917759100,14.54454651,178.12,178.07,14.54454651]
[1754917759287,14.54454651,178.1,178.06,0.05138731]
[1754917759798,14.54454651,178.07,178.06,0.05138731]
[1754917760003,20.16031558,178.07,178.06,0.05138731]
[1754917760501,26.0,178.11,178.06,0.05138731]
[1754917760806,0.03,178.15,178.06,0.74138731]
[1754917760807,67.02,178.13,178.06,0.74138731]
[1754917760977,67.02,178.13,178.1,14.54454651]
[1754917761305,81.56454651,178.13,178.08,14.54454651]
[1754917761483,67.02,178.13,178.1,14.54454651]
[1754917761686,140.0,178.1,178.08,15.23454651]
[1754917761886,140.0,178.1,178.09,15.23454651]
[1754917762205,5.6433117,178.15,178.09,15.23454651]
[1754917762502,5.6433117,178.15,178.09,0.69]
[1754917762684,14.54454651,178.13,178.08,14.54454651]
[1754917763025,5.6433117,178.15,178.08,14.54454651]
[1754917763301,14.54454651,178.13,178.08,14.54454651]
[1754917763815,5.6433117,178.15,178.09,14.54454651]
[1754917764006,5.6138775,178.13,178.09,15.23454651]
[1754917764186,5.6138775,178.13,178.09,14.54454651]
[1754917764388,31.6138775,178.13,178.1,0.69]
[1754917764916,14.54454651,178.11,178.06,0.05138731]
[1754917765117,14.54454651,178.1,178.06,0.05138731]
[1754917765415,0.03,178.15,178.09,14.54454651]
[1754917765587,0.03,178.15,178.11,14.54454651]
[1754917765783,14.54454651,178.12,178.06,0.05138731]
[1754917765999,14.54454651,178.1,178.06,0.05138731]
[1754917766195,20.15945416,178.1,178.06,0.05138731]
[1754917766405,55.56454651,178.12,178.07,15.23454651]
[1754917766598,55.56454651,178.12,178.08,0.69]
[1754917766912,14.54454651,178.11,178.08,0.69]
[1754917767211,14.54454651,178.11,178.06,15.28593382]
[1754917768306,14.54454651,178.11,178.07,0.69]
[1754917768478,20.15906509,178.11,178.07,0.69]
[1754917768895,14.54454651,178.11,178.07,0.69]
[1754917769210,0.03,178.15,178.1,14.54454651]
[1754917769404,0.03,178.15,178.11,14.54454651]
[1754917769405,41.0,178.14,178.11,14.54454651]
[1754917769603,41.0,178.14,178.11,15.23454651]
[1754917769811,41.0,178.14,178.06,20.77359161]
[1754917770111,14.54454651,178.11,178.06,20.21194367]
[1754917770297,20.15874709,178.12,178.07,15.23454651]
[1754917770611,5.61420058,178.12,178.08,15.23454651]
[1754917770804,5.61420058,178.12,178.09,0.69]
[1754917771678,5.61420058,178.12,178.06,5.66739716]
[1754917771679,26.0,178.09,178.06,0.05138731]
[1754917772010,14.54454651,178.07,178.06,0.05138731]
[1754917772303,40.98,178.09,178.06,0.05138731]
[1754917772502,40.98,178.1,178.07,15.23454651]
[1754917772824,40.54454651,178.12,178.08,0.69]
[1754917773128,40.54454651,178.12,178.1,14.54454651]
[1754917773129,26.0,178.12,178.1,14.54454651]
[1754917773418,0.03,178.15,178.11,15.23454651]
[1754917773605,0.03,178.17,178.14,29.65076208]
[1754917773816,0.03,178.17,178.14,15.10621557]
[1754917773994,0.03,178.17,178.15,0.69]
[1754917774327,0.03,178.17,178.16,15.23970048]
[1754917774678,0.03,178.17,178.16,31.03591605]
[1754917775187,0.03,178.19,178.17,15.10621557]
[1754917775392,0.03,178.25,178.19,15.10621557]
[1754917775596,0.03,178.25,178.24,9.62676829]
[1754917776123,0.03,178.29,178.24,9.62676829]
[1754917776124,0.03,178.29,178.28,9.62676829]
[1754917776292,0.03,178.29,178.28,20.11739317]
[1754917776488,0.1,178.35,178.29,15.10621557]
[1754917776689,0.1,178.35,178.3,0.56085249]
[1754917776917,0.1,178.35,178.34,29.61445461]
[1754917777215,0.03,178.4,178.34,29.61445461]
[1754917777216,0.03,178.4,178.35,15.10621557]
[1754917777419,0.03,178.4,178.39,14.50823904]
[1754917777624,0.03,178.4,178.37,15.10621557]
[1754917777919,0.03,178.4,178.37,15.79621557]
[1754917778124,0.03,178.4,178.39,29.61445461]
[1754917778291,0.03,178.4,178.39,35.22014999]
[1754917778490,0.03,178.4,178.39,21.40191095]
[1754917778689,0.03,178.4,178.39,35.91014999]
[1754917779186,0.03,178.4,178.39,15.19823904]
[1754917779391,0.03,178.4,178.35,26.0]
[1754917779392,0.03,178.4,178.36,41.83]
[1754917779692,0.03,178.4,178.36,41.14]
[1754917779893,0.03,178.4,178.38,14.50823904]
[1754917780116,0.03,178.4,178.39,14.50823904]
[1754917780290,0.03,178.4,178.39,20.11393442]
[1754917780629,0.03,178.46,178.43,15.10621557]
[1754917780790,0.03,178.46,178.45,14.50823904]
[1754917781221,0.03,178.46,178.41,0.69]
[1754917781402,0.03,178.46,178.43,14.50823904]
[1754917781592,0.03,178.46,178.42,0.69]
[1754917781792,14.50823904,178.44,178.39,0.69]
[1754917781988,14.50823904,178.44,178.39,14.50823904]
[1754917782230,14.50823904,178.45,178.4,14.50823904]
[1754917782607,14.50823904,178.45,178.36,41.10621557]
[1754917782608,14.50823904,178.43,178.36,41.10621557]
[1754917782810,26.4,178.42,178.32,0.69]
[1754917782998,40.50823904,178.42,178.37,14.50823904]
[1754917783197,140.0,178.37,178.34,0.69]
[1754917783427,140.0,178.37,178.35,14.50823904]
[1754917783796,14.50823904,178.41,178.36,14.50823904]
[1754917784328,26.0,178.42,178.38,14.50823904]
[1754917784524,26.0,178.42,178.37,0.69]
[1754917784525,0.03,178.46,178.41,14.50823904]
[1754917784832,0.03,178.46,178.45,14.50823904]
[1754917785192,14.53823904,178.46,178.41,14.50823904]
[1754917785395,14.50823904,178.42,178.38,14.50823904]
[1754917785603,14.50823904,178.42,178.37,15.79621557]
[1754917785836,14.50823904,178.41,178.36,41.2]
[1754917786021,14.50823904,178.4,178.36,41.2]
[1754917786225,26.0,178.43,178.36,41.2]
[1754917786226,14.50823904,178.39,178.36,41.2]
[1754917786436,14.50823904,178.39,178.34,20.80550605]
[1754917786640,26.0,178.43,178.35,15.19823904]
[1754917786641,14.50823904,178.4,178.35,15.19823904]
[1754917786819,14.50823904,178.4,178.34,5.60726701]
[1754917786820,14.50823904,178.41,178.36,14.50823904]
[1754917787021,14.50823904,178.39,178.35,0.69]
[1754917787343,14.50823904,178.38,178.32,62.0258231]
[1754917787511,14.50823904,178.34,178.29,0.69]
[1754917787708,14.50823904,178.33,178.28,14.50823904]
[1754917787920,14.50823904,178.32,178.28,0.69]
[1754917788318,14.50823904,178.31,178.26,55.72823904]
[1754917788532,14.50823904,178.31,178.26,56.40823904]
[1754917788732,14.50823904,178.34,178.29,14.50823904]
[1754917788936,14.50823904,178.34,178.29,15.18823904]
[1754917789133,26.0,178.36,178.29,14.50823904]
[1754917789318,14.50823904,178.34,178.3,15.18823904]
[1754917789512,14.50823904,178.34,178.3,0.68]
[1754917790028,14.50823904,178.33,178.28,14.50823904]
[1754917790236,26.0,178.36,178.29,15.18823904]
[1754917790237,14.50823904,178.34,178.29,15.18823904]
[1754917790617,14.50823904,178.36,178.32,14.50823904]
[1754917790816,41.2,178.39,178.33,14.50823904]
[1754917790817,67.2,178.39,178.33,14.50823904]
[1754917791053,81.70823904,178.39,178.33,0.68]
[1754917791354,14.50823904,178.34,178.3,5.60852495]
[1754917791852,26.0,178.36,178.3,6.28852495]
[1754917792156,14.50823904,178.35,178.31,0.68]
[1754917792362,14.50823904,178.32,178.27,20.71568435]
[1754917792635,14.50823904,178.31,178.27,5.60946878]
[1754917792840,14.50823904,178.31,178.28,0.68]
[1754917793026,14.50823904,178.31,178.27,20.79770782]
[1754917793230,26.0,178.32,178.26,41.22]
[1754917793539,26.0,178.32,178.24,15.78621557]
[1754917793540,14.50823904,178.28,178.24,15.18823904]
[1754917793756,14.50823904,178.28,178.25,5.60983187]
[1754917794115,26.0,178.32,178.25,5.60983187]
[1754917794320,40.50823904,178.32,178.28,14.50823904]
[1754917794621,14.50823904,178.29,178.25,5.60983187]
[1754917794821,14.50823904,178.3,178.25,20.79807091]
[1754917795023,14.50823904,178.31,178.26,14.50823904]
[1754917795225,26.0,178.32,178.26,15.18823904]
[1754917795422,40.50823904,178.31,178.26,15.18823904]
[1754917796037,14.50823904,178.3,178.26,0.68]
[1754917796240,26.0,178.31,178.26,14.50823904]
[1754917796241,40.50823904,178.31,178.26,14.50823904]
[1754917796542,14.50823904,178.3,178.26,0.68]
[1754917796749,26.0,178.31,178.27,6.28946878]
[1754917796955,40.50823904,178.31,178.27,6.28946878]
[1754917797248,14.50823904,178.3,178.24,5.61041292]
[1754917797451,14.50823904,178.29,178.24,20.11865196]
[1754917797921,14.50823904,178.3,178.25,14.50823904]
[1754917798327,26.4,178.31,178.25,20.11817134]
[1754917798536,40.50823904,178.31,178.25,5.6099323]
[1754917798725,26.0,178.31,178.27,14.50823904]
[1754917798932,26.0,178.31,178.27,0.68]
[1754917798933,40.50823904,178.31,178.27,0.68]
[1754917799541,40.50823904,178.31,178.26,14.50823904]
[1754917799742,14.50823904,178.29,178.24,5.61036536]
[1754917800051,14.50823904,178.28,178.23,14.50823904]
[1754917800365,14.50823904,178.29,178.24,14.50823904]
[1754917800526,31.6082993,178.31,178.27,14.50823904]
[1754917800730,31.6082993,178.31,178.25,15.18823904]
[1754917800937,14.50823904,178.27,178.21,15.78621557]
[1754917801144,14.50823904,178.23,178.19,0.68]
[1754917801326,0.4,178.26,178.19,0.68]
[1754917801738,0.4,178.26,178.17,55.58823904]
[1754917801739,140.0,178.19,178.17,55.58823904]
[1754917802060,140.0,178.19,178.18,15.18823904]
[1754917802244,14.50823904,178.23,178.18,15.18823904]
[1754917802441,26.0,178.24,178.19,5.6119872]
[1754917802640,40.50823904,178.24,178.19,20.12022624]
[1754917802951,26.0,178.24,178.21,14.50823904]
[1754917803142,40.50823904,178.27,178.22,15.18823904]
[1754917803452,14.50823904,178.25,178.21,14.50823904]
[1754917803661,14.50823904,178.22,178.19,5.6119872]
[1754917803957,14.50823904,178.21,178.17,5.61261716]
[1754917804260,14.50823904,178.18,178.12,0.68]
[1754917804433,41.1,178.21,178.13,5.6138775]
[1754917804627,14.50823904,178.22,178.17,14.50823904]
[1754917804827,14.50823904,178.23,178.18,15.18823904]
[1754917805369,26.0,178.24,178.2,14.50823904]
[1754917805578,26.0,178.24,178.2,15.18823904]
[1754917805735,40.50823904,178.24,178.19,14.50823904]
[1754917806056,14.50823904,178.23,178.18,14.50823904]
[1754917806655,40.50823904,178.24,178.2,14.50823904]
[1754917806902,41.14,178.25,178.22,14.50823904]
[1754917807043,55.64823904,178.25,178.21,0.68]
[1754917807235,41.14,178.25,178.18,19.64305757]
[1754917807444,55.64823904,178.25,178.19,0.68]
[1754917807654,55.64823904,178.25,178.2,14.50823904]
[1754917808047,14.50823904,178.24,178.19,14.50823904]
[1754917808272,140.0,178.19,178.18,5.61230216]
[1754917808762,14.50823904,178.22,178.18,5.61230216]
[1754917808968,14.50823904,178.23,178.18,20.1205412]
[1754917809692,26.4,178.22,178.17,5.61254386]
[1754917809859,14.50823904,178.19,178.14,55.64823904]
[1754917810059,14.50823904,178.18,178.14,41.82]
[1754917810370,14.50823904,178.18,178.15,5.61324726]
[1754917810558,14.50823904,178.19,178.15,6.29324726]
[1754917810979,14.50823904,178.17,178.15,5.61324726]
[1754917811151,14.50823904,178.17,178.13,5.61357149]
[1754917811482,0.4,178.19,178.13,5.61357149]
[1754917811483,0.4,178.22,178.15,14.50823904]
[1754917811659,26.0,178.22,178.16,15.18823904]
[1754917811863,14.50823904,178.2,178.16,0.68]
[1754917812387,26.0,178.23,178.19,14.50823904]
[1754917812552,14.50823904,178.22,178.19,5.6119872]
[1754917812752,26.0,178.23,178.15,55.15253428]
[1754917812753,14.50823904,178.2,178.18,5.61220907]
[1754917812954,14.50823904,178.19,178.14,5.61356236]
[1754917813159,14.50823904,178.17,178.14,5.61356236]
[1754917813357,41.14,178.21,178.14,6.29356236]
[1754917813670,14.50823904,178.18,178.14,6.29356236]
[1754917813866,14.50823904,178.17,178.14,5.61356236]
[1754917814572,14.50823904,178.16,178.12,5.61419267]
[1754917814983,14.50823904,178.17,178.12,20.80243171]
[1754917815184,14.50823904,178.16,178.13,0.68]
[1754917815482,14.50823904,178.14,178.1,5.61482313]
[1754917815685,0.4,178.17,178.1,5.61482313]
[1754917815887,0.4,178.17,178.1,20.12306217]
[1754917815888,14.50823904,178.15,178.1,20.12306217]
[1754917816087,14.50823904,178.15,178.1,20.80306217]
[1754917816672,14.50823904,178.17,178.12,20.12243171]
[1754917816883,14.50823904,178.16,178.12,6.29419267]
[1754917817198,14.50823904,178.16,178.12,20.80243171]
[1754917817576,14.50823904,178.17,178.13,0.68]
[1754917817972,32.01177531,178.2,178.12,19.64967436]
[1754917818278,14.50823904,178.17,178.13,0.68]
[1754917818461,14.50823904,178.17,178.12,20.12243171]
[1754917818661,14.50823904,178.14,178.12,5.61419267]
[1754917818900,14.50823904,178.13,178.08,0.06]
[1754917819199,14.50823904,178.11,178.08,5.67537382]
[1754917819684,14.50823904,178.09,178.08,0.06]
[1754917820285,14.50823904,178.11,178.08,0.06]
[1754917820470,67.06,178.13,178.08,0.06]
[1754917820687,14.50823904,178.1,178.08,0.06]